lending/lending_fUSD_20240824
["ID","MTS","AMOUNT","RATE_DAILY","PERIOD"]
[335805117,1724497851958,-500.0,0.00013899,2]
[335805119,1724497851968,-500.0,0.00013899,2]
[335805121,1724497851978,-500.0,0.00013899,2]
[335805123,1724497851988,-1063.67,0.00013899,2]
[335805125,1724497851997,-1063.67,0.00013899,2]
[335805127,1724497852007,-1063.67,0.00013899,2]
[335805129,1724497852018,-500.0,0.00013899,2]
[335805131,1724497852028,-557.67878327,0.00013899,2]
[335805133,1724497852037,-911.07,0.00013899,2]
[335805135,1724497852047,-911.07,0.00013899,2]
[335805137,1724497852057,-778.43,0.00013899,2]
[335805139,1724497852067,-778.43,0.00013899,2]
[335805141,1724497852077,-778.43,0.00013899,2]
[335805143,1724497852085,-500.0,0.00013899,2]
[335805145,1724497852094,-500.0,0.00013899,2]
[335805147,1724497852103,-500.0,0.00013899,2]
[335805149,1724497852113,-150.0,0.000139,2]
[335805151,1724497852122,-1711.292,0.000139,2]
[335805153,1724497852132,-1538.0,0.000139,2]
[335805155,1724497852142,-447.0,0.000139,2]
[335805157,1724497852152,-1138.0,0.000139,2]
[335805159,1724497852162,-809.0,0.000139,2]
[335805161,1724497852171,-248.0,0.000139,2]
[335805163,1724497852180,-600306.778399,0.000139,3]
[335805165,1724497852189,-823.0,0.00013959,2]
[335805167,1724497852199,-1256.18139789,0.00014245,2]
[335805169,1724497852210,-416.8807773,0.00014681,2]
[335805171,1724497852219,-800.0,0.00014812,2]
[335805173,1724497852229,-400.0,0.00014845,2]
[335805175,1724497852239,-452.99,0.00014973,2]
[335805177,1724497852248,-500.0,0.00014999,2]
[335805178,1724497852259,-500.0,0.00014999,2]
[335805180,1724497852268,-911.07,0.00014999,2]
[335805182,1724497852277,-6830.61865859,0.00015,2]
[335805184,1724497852287,-527.48526507,0.00015,2]
[335805186,1724497852297,-200.0,0.00015046,2]
[335805189,1724497852306,-300.0,0.00015068,2]
[335805191,1724497852318,-200.0,0.00015203,2]
[335805192,1724497852328,-1152.0,0.00015347,2]
[335805194,1724497852337,-1391.0,0.000156,3]
[335805196,1724497852348,-300.0,0.00016,5]
[335805198,1724497852358,-320.0,0.00016,5]
[335805200,1724497852367,-3729.0,0.00016101,2]
[335805202,1724497852377,-5848.0,0.00016101,2]
[335805204,1724497852386,-1206.0,0.00016101,2]
[335805206,1724497852395,-1674.0,0.00016101,2]
[335805208,1724497852405,-21784.0,0.00016101,2]
[335805210,1724497852414,-289.0,0.00016101,2]
[335805212,1724497852424,-300.0,0.00016438,2]
[335805214,1724497852434,-167.0,0.00016775,2]
[335805216,1724497852443,-1613.0,0.00016873,2]
[335805218,1724497852453,-150.0,0.000169,2]
[335805220,1724497852462,-209.965,0.000169,2]
[335805222,1724497852471,-1138.0,0.000169,2]
[335805224,1724497852485,-530.424,0.000169,2]
[335805226,1724497852495,-248.0,0.000169,2]
[335805228,1724497852504,-7667.0,0.00017,3]
[335805229,1724497852513,-452.99,0.00017225,2]
[335805230,1724497852523,-167.0,0.00017328,2]
[335805231,1724497852532,-167.0,0.00017882,2]
[335805232,1724497852542,-2099.0,0.00018,2]
[335805233,1724497852551,-150.0,0.00018,5]
[335805234,1724497852560,-1005.1,0.00018,2]
[335805235,1724497852569,-418.12,0.00018211,2]
[335805236,1724497852579,-211.0,0.0001833,2]
[335805237,1724497852588,-150.16,0.00018372,2]
[335805238,1724497852598,-167.0,0.00018436,2]
[335805239,1724497852607,-150.0,0.000185,6]
[335805240,1724497852616,-2258.0,0.00018551,2]
[335805241,1724497852626,-310115.0,0.000189,2]
[335805242,1724497852635,-1005.1,0.0001896,2]
[335805243,1724497852645,-167.0,0.0001899,2]
[335805245,1724497852654,-496.0,0.00019,2]
[335805247,1724497852663,-150.0,0.00019,6]
[335805249,1724497852673,-3726.0,0.00019101,2]
[335805251,1724497852683,-5845.0,0.00019101,2]
[335805253,1724497852692,-1203.0,0.00019101,2]
[335805255,1724497852703,-1674.0,0.00019101,2]
[335805257,1724497852712,-21769.0,0.00019101,2]
[335805259,1724497852723,-500.0,0.00019199,5]
[335805261,1724497852732,-3389.14778268,0.00019271,2]
[335805263,1724497852742,-243.50407599,0.00019331,2]
[335805265,1724497852751,-2535.63769187,0.0001934,2]
[335805267,1724497852761,-633.71,0.00019376,5]
[335805269,1724497852770,-452.99,0.00019476,2]
[335805271,1724497852779,-150.0,0.000195,7]
[335805274,1724497852789,-11503.0,0.000195,3]
[335805276,1724497852799,-167.0,0.00019543,2]
[335805278,1724497852808,-1242.82877472,0.0001961,2]
[335805280,1724497852818,-666.99390921,0.0001961,30]
[335805282,1724497852827,-155.0,0.00019612,2]
[335805283,1724497852836,-155.0,0.00019612,2]
[335805286,1724497852851,-155.0,0.00019612,2]
[335805288,1724497852861,-813.66,0.00019699,5]
[335805289,1724497852870,-813.66,0.00019699,5]
[335805292,1724497852880,-635.3,0.00019699,5]
[335805293,1724497852891,-635.3,0.00019699,5]
[335805295,1724497852900,-7000.0,0.00019735,3]
[335805297,1724497852910,-1138.0,0.000199,2]
[335805299,1724497852919,-248.0,0.000199,2]
[335805301,1724497852930,-7000.82260797,0.000199,2]
[335805303,1724497852940,-1005.1,0.0001992,2]
[335805305,1724497852951,-500.0,0.00019998,5]
[335805307,1724497852961,-622.84049235,0.00019998,5]
[335805309,1724497852971,-632.0,0.00019998,5]
[335805311,1724497852980,-2340.07,0.00019998,5]
[335805313,1724497852989,-500.0,0.00019998,5]
[335805315,1724497852999,-500.0,0.00019998,5]
[335805317,1724497853008,-500.0,0.00019998,5]
[335805320,1724497853018,-500.0,0.00019998,5]
[335805321,1724497853028,-188.14207171,0.00019998,5]
[335805323,1724497853038,-500.0,0.00019998,5]
[335805325,1724497853047,-500.0,0.00019998,5]
[335805327,1724497853057,-500.0,0.00019998,5]
[335805329,1724497853068,-1420.75,0.00019999,5]
[335805331,1724497853078,-617.57,0.00019999,5]
[335805334,1724497853087,-500.0,0.00019999,5]
[335805335,1724497853097,-500.0,0.00019999,5]
[335805338,1724497853106,-500.0,0.00019999,5]
[335805339,1724497853116,-506.07,0.00019999,5]
[335805341,1724497853125,-500.0,0.00019999,5]
[335805343,1724497853134,-500.0,0.00019999,5]
[335805345,1724497853144,-224.32649399,0.00019999,5]
[335805347,1724497853153,-193.76004666,0.00019999,5]
[335805349,1724497853162,-500.0,0.00019999,5]
[335805351,1724497853172,-500.0,0.00019999,5]
[335805353,1724497853182,-321.60841853,0.00019999,5]
[335805355,1724497853191,-500.0,0.00019999,5]
[335805357,1724497853201,-642.66976086,0.00019999,5]
[335805359,1724497853210,-500.0,0.00019999,5]
[335805361,1724497853219,-633.71,0.00019999,5]
[335805363,1724497853229,-500.0,0.00019999,5]
[335805365,1724497853238,-500.0,0.00019999,5]
[335805367,1724497853247,-500.0,0.00019999,5]
[335805369,1724497853258,-500.0,0.00019999,5]
[335805371,1724497853267,-500.0,0.00019999,5]
[335805373,1724497853276,-813.66,0.00019999,5]
[335805375,1724497853286,-635.3,0.00019999,5]
[335805377,1724497853295,-500.0,0.00019999,5]
[335805379,1724497853304,-790.99,0.00019999,5]
[335805381,1724497853313,-1063.67,0.00019999,5]
[335805383,1724497853323,-911.07,0.00019999,5]
[335805385,1724497853332,-778.43,0.00019999,5]
[335805387,1724497853342,-3110.6848393,0.0002,2]
[335805389,1724497853351,-156.68553151,0.0002,2]
[335805391,1724497853360,-992.0,0.0002,2]
[335805393,1724497853370,-2045.0,0.0002,2]
[335805395,1724497853379,-150.0,0.0002,2]
[335805397,1724497853388,-208.0,0.0002,2]
[335805399,1724497853397,-208.0,0.0002,2]
[335805401,1724497853407,-233.0,0.0002,2]
[335805403,1724497853417,-193.0,0.0002,2]
[335805404,1724497853425,-200.0,0.0002,2]
[335805406,1724497853435,-186.0,0.0002,2]
[335805408,1724497853444,-457.0,0.0002,2]
[335805410,1724497853454,-24058.89469977,0.0002,2]
[335805412,1724497853463,-14502.58063257,0.0002,2]
[335805414,1724497853472,-1368.20038128,0.0002,2]
[335805416,1724497853482,-2856.01673509,0.0002,2]
[335805418,1724497853491,-155.0,0.0002,2]
[335805420,1724497853500,-150.0,0.0002,7]
[335805422,1724497853510,-150.0,0.0002,2]
[335805424,1724497853519,-133055.76890906,0.0002,2]
[335805426,1724497853528,-11503.0,0.0002,5]
[335805428,1724497853537,-1000.0,0.0002,2]
[335805430,1724497853546,-624.936931,0.00020028,2]
[335805432,1724497853556,-500.0,0.00020068,2]
[335805434,1724497853565,-500.0,0.00020068,2]
[335805436,1724497853575,-1867.51775914,0.0002008,2]
[335805438,1724497853584,-500.0,0.00020144,2]
[335805440,1724497853593,-911.07,0.00020299,5]
[335805442,1724497853602,-2500.0,0.00020384,5]
[335805444,1724497853611,-3162.0,0.00020396,2]
[335805446,1724497853621,-201.40438151,0.00020414,2]
[335805448,1724497853630,-150.0,0.000205,8]
[335805450,1724497853639,-173.39,0.00020548,2]
[335805452,1724497853648,-500.0,0.00020599,5]
[335805454,1724497853659,-500.0,0.00020599,5]
[335805456,1724497853668,-632.0,0.00020599,5]
[335805458,1724497853677,-632.0,0.00020599,5]
[335805460,1724497853687,-2340.07,0.00020599,5]
[335805462,1724497853696,-2340.07,0.00020599,5]
[335805464,1724497853706,-500.0,0.00020599,5]
[335805466,1724497853716,-500.0,0.00020599,5]
[335805468,1724497853725,-500.0,0.00020599,5]
[335805470,1724497853735,-500.0,0.00020599,5]
[335805472,1724497853745,-500.0,0.00020599,5]
[335805474,1724497853755,-500.0,0.00020599,5]
[335805476,1724497853764,-500.0,0.00020599,5]
[335805478,1724497853773,-500.0,0.00020599,5]
[335805480,1724497853783,-500.0,0.00020599,5]
[335805482,1724497853793,-500.0,0.00020599,5]
[335805484,1724497853802,-500.0,0.00020599,5]
[335805486,1724497853812,-500.0,0.00020599,5]
[335805488,1724497853821,-500.0,0.00020599,5]
[335805490,1724497853830,-500.0,0.00020599,5]
[335805492,1724497853840,-1516.52842,0.0002088,2]
[335805494,1724497853853,-290.997693,0.000209,2]
[335805496,1724497853862,-1420.75,0.00020999,5]
[335805498,1724497853872,-532.68,0.00020999,5]
[335805500,1724497853882,-500.0,0.00020999,5]
[335805502,1724497853892,-500.0,0.00020999,5]
[335805504,1724497853902,-500.0,0.00020999,5]
[335805517,1724497854019,-500.0,0.00020999,5]
[335805519,1724497854030,-575.47710587,0.00020999,5]
[335805521,1724497854040,-500.0,0.00020999,5]
[335805523,1724497854049,-500.0,0.00020999,5]
[335805525,1724497854058,-500.0,0.00020999,5]
[335805527,1724497854068,-500.0,0.00020999,5]
[335805529,1724497854077,-244.77025118,0.00020999,5]
[335805531,1724497854087,-500.0,0.00020999,5]
[335805533,1724497854096,-500.0,0.00020999,5]
[335805535,1724497854105,-500.0,0.00020999,5]
[335805537,1724497854115,-790.99,0.00020999,5]
[335805539,1724497854124,-1063.67,0.00020999,5]
[335805541,1724497854133,-778.43,0.00020999,5]
[335805543,1724497854144,-520.11186401,0.00021,2]
[335805545,1724497854153,-266.13,0.00021,2]
[335805547,1724497854162,-301.18,0.00021,2]
[335805549,1724497854171,-150.0,0.00021,9]
[335805551,1724497854180,-1005.1,0.00021,2]
[335805553,1724497854189,-286.893192,0.00021,2]
[335805555,1724497854200,-1420.75,0.00021098,5]
[335805557,1724497854209,-500.0,0.00021098,5]
[335805559,1724497854218,-500.0,0.00021098,5]
[335805561,1724497854227,-500.0,0.00021098,5]
[335805563,1724497854238,-523.63216666,0.00021098,5]
[335805565,1724497854247,-500.0,0.00021098,5]
[335805567,1724497854257,-421.81817521,0.00021098,5]
[335805569,1724497854266,-500.0,0.00021098,5]
[335805571,1724497854275,-500.0,0.00021098,5]
[335805572,1724497854285,-364.27,0.00021098,5]
[335805574,1724497854294,-215.0,0.00021098,5]
[335805576,1724497854303,-500.0,0.00021098,5]
[335805578,1724497854312,-790.99,0.00021098,5]
[335805581,1724497854321,-1063.67,0.00021098,5]
[335805583,1724497854331,-778.43,0.00021098,5]
[335805585,1724497854341,-633.71,0.00021099,5]
[335805587,1724497854350,-500.0,0.00021164,2]
[335805588,1724497854359,-500.0,0.00021164,2]
[335805591,1724497854369,-151.0,0.000215,2]
[335805592,1724497854379,-176.460232,0.000215,9]
[335805594,1724497854388,-2712.24,0.00021589,30]
[335805596,1724497854397,-452.99,0.00021728,2]
[335805598,1724497854406,-911.07,0.00021869,5]
[335805601,1724497854416,-50000.0,0.0002187,4]
[335805602,1724497854426,-600.0,0.00021917,2]
[335805605,1724497854436,-600.0,0.00021917,2]
[335805606,1724497854445,-360.67535541,0.00021917,2]
[335805608,1724497854454,-633.71,0.00021917,5]
[335805610,1724497854464,-8186.59,0.00021917,2]
[335805612,1724497854473,-500.0,0.00021917,2]
[335805614,1724497854483,-500.0,0.00021917,2]
[335805616,1724497854492,-500.0,0.00021917,2]
[335805618,1724497854501,-500.0,0.00021917,2]
[335805620,1724497854511,-500.0,0.00021917,2]
[335805622,1724497854521,-500.0,0.00021917,2]
[335805624,1724497854530,-500.0,0.00021917,2]
[335805626,1724497854539,-500.0,0.00021917,2]
[335805628,1724497854549,-500.0,0.00021917,2]
[335805630,1724497854557,-500.0,0.00021917,2]
[335805632,1724497854567,-500.0,0.00021917,2]
[335805634,1724497854576,-500.0,0.00021917,2]
[335805636,1724497854585,-500.0,0.00021917,2]
[335805638,1724497854595,-24358.32,0.00021918,2]
[335805640,1724497854604,-150.0,0.00021918,2]
[335805642,1724497854613,-500.0,0.00021918,2]
[335805644,1724497854623,-500.0,0.00021918,2]
[335805646,1724497854632,-500.0,0.00021918,2]
[335805648,1724497854641,-500.0,0.00021918,2]
[335805650,1724497854651,-500.0,0.00021918,2]
[335805652,1724497854660,-500.0,0.00021918,2]
[335805654,1724497854670,-159.4924779,0.00021918,2]
[335805656,1724497854679,-1005.1,0.0002196,2]
[335805658,1724497854688,-29996.34516964,0.00022,2]
[335805660,1724497854697,-800.0,0.00022136,2]
[335805662,1724497854706,-3000.0,0.000222,2]
[335805664,1724497854716,-500.0,0.0002226,2]
[335805666,1724497854725,-500.0,0.0002226,2]
[335805668,1724497854735,-500.0,0.0002226,2]
[335805670,1724497854743,-500.0,0.0002226,2]
[335805672,1724497854752,-4427.0,0.00022424,2]
[335805673,1724497854761,-1000.0,0.00022466,2]
[335805676,1724497854771,-150.0,0.00022495,2]
[335805677,1724497854779,-301.18,0.0002268,2]
[335805679,1724497854788,-1005.1,0.0002292,2]
[335805681,1724497854797,-260.23130616,0.00023,4]
[335805683,1724497854806,-173.0,0.00023,2]
[335805685,1724497854815,-150.0,0.00023,2]
[335805687,1724497854825,-150.0,0.00023071,2]
[335805689,1724497854834,-180.0,0.00023205,2]
[335805691,1724497854844,-8186.59,0.00023287,4]
[335805693,1724497854857,-2000.0,0.000233,2]
[335805695,1724497854867,-250.0,0.000233,2]
[335805697,1724497854876,-496.0,0.000233,2]
[335805699,1724497854886,-279.60487114,0.000233,2]
[335805701,1724497854896,-200.0,0.000233,2]
[335805703,1724497854905,-328.0,0.000233,2]
[335805705,1724497854914,-600.0,0.000233,2]
[335805707,1724497854923,-500.0,0.00023356,2]
[335805709,1724497854933,-500.0,0.00023356,2]
[335805711,1724497854943,-2641.75,0.00023368,2]
[335805713,1724497854952,-4453.50742903,0.0002354,2]
[335805715,1724497854962,-150.0,0.00023648,2]
[335805717,1724497854971,-150.0,0.00023711,2]
[335805719,1724497854981,-1005.1,0.0002388,2]
[335805721,1724497854991,-452.99,0.00023979,2]
[335805723,1724497855000,-155.0,0.00024,15]
[335805724,1724497855009,-211.25149192,0.00024,2]
[335805725,1724497855018,-186.0,0.00024,7]
[335805726,1724497855027,-155.0,0.00024,2]
[335805727,1724497855036,-150.0,0.00024052,2]
[335805728,1724497855045,-150.0,0.00024225,2]
[335805729,1724497855055,-150.0,0.00024229,2]
[335805730,1724497855063,-150.0,0.00024283,2]
[335805731,1724497855073,-150.0,0.00024292,2]
[335805732,1724497855082,-939.86,0.00024295,2]
[335805733,1724497855091,-461.18,0.00024295,2]
[335805734,1724497855100,-150.0,0.00024344,2]
[335805735,1724497855109,-301.18,0.0002436,2]
[335805736,1724497855119,-150.0,0.00024384,2]
[335805737,1724497855128,-3905.21795062,0.00024439,2]
[335805739,1724497855137,-171.95127073,0.00024439,2]
[335805741,1724497855146,-1980.89924891,0.00024439,2]
[335805743,1724497855155,-1033.11136111,0.00024439,2]
[335805744,1724497855163,-362.90093784,0.00024439,2]
[335805746,1724497855172,-1052.0,0.00024444,2]
[335805748,1724497855182,-500.0,0.00024451,5]
[335805750,1724497855191,-632.0,0.00024451,5]
[335805752,1724497855200,-2340.07,0.00024451,5]
[335805754,1724497855209,-278.31149697,0.00024451,5]
[335805756,1724497855218,-500.0,0.00024451,5]
[335805758,1724497855227,-500.0,0.00024451,5]
[335805760,1724497855238,-379.8584865,0.00024451,5]
[335805762,1724497855247,-500.0,0.00024451,5]
[335805764,1724497855256,-500.0,0.00024451,5]
[335805766,1724497855265,-500.0,0.00024451,5]
[335805767,1724497855274,-500.0,0.00024452,2]
[335805769,1724497855283,-500.0,0.00024452,2]
[335805771,1724497855292,-500.0,0.00024452,2]
[335805773,1724497855302,-500.0,0.00024452,2]
[335805775,1724497855311,-203.46911889,0.0002449,2]
[335805777,1724497855320,-1908.93329369,0.000245,2]
[335805779,1724497855330,-2110.0,0.000245,30]
[335805781,1724497855340,-171.35047999,0.00024539,2]
[335805782,1724497855349,-813.66,0.00024624,5]
[335805784,1724497855358,-635.3,0.00024624,5]
[335805786,1724497855367,-5907.94130599,0.00024625,2]
[335805788,1724497855376,-2996.0,0.00024654,2]
[335805790,1724497855386,-500.0,0.00024657,2]
[335805792,1724497855395,-500.0,0.00024657,2]
[335805794,1724497855405,-500.0,0.00024657,2]
[335805796,1724497855413,-500.0,0.00024657,2]
[335805798,1724497855422,-500.0,0.00024657,2]
[335805800,1724497855432,-500.0,0.00024657,2]
[335805802,1724497855441,-500.0,0.00024657,2]
[335805803,1724497855450,-500.0,0.00024657,2]
[335805805,1724497855459,-500.0,0.00024657,2]
[335805807,1724497855469,-500.0,0.00024657,2]
[335805809,1724497855478,-500.0,0.00024657,2]
[335805811,1724497855488,-500.0,0.00024657,2]
[335805813,1724497855497,-500.0,0.00024657,2]
[335805815,1724497855506,-500.0,0.00024657,2]
[335805817,1724497855515,-500.0,0.00024657,2]
[335805819,1724497855525,-500.0,0.00024657,2]
[335805821,1724497855534,-503.93991786,0.00024657,2]
[335805823,1724497855543,-8186.59,0.00024657,6]
[335805825,1724497855553,-150.0,0.00024672,2]
[335805827,1724497855562,-3568.99,0.0002468,7]
[335805829,1724497855571,-1052.0,0.00024696,2]
[335805831,1724497855581,-1420.75,0.00024699,5]
[335805833,1724497855592,-500.0,0.00024699,5]
[335805835,1724497855601,-500.0,0.00024699,5]
[335805837,1724497855610,-500.0,0.00024699,5]
[335805838,1724497855620,-500.0,0.00024699,5]
[335805840,1724497855630,-500.0,0.00024699,5]
[335805842,1724497855639,-500.0,0.00024699,5]
[335805844,1724497855650,-500.0,0.00024699,5]
[335805846,1724497855659,-500.0,0.00024699,2]
[335805848,1724497855669,-790.99,0.00024699,5]
[335805850,1724497855678,-1063.67,0.00024699,5]
[335805852,1724497855687,-778.43,0.00024699,5]
[335805854,1724497855697,-1210.0,0.000247,2]
[335805856,1724497855706,-150.0,0.00024742,2]
[335805858,1724497855717,-2712.24,0.0002475,30]
[335805861,1724497855727,-150.0,0.00024769,2]
[335805863,1724497855737,-150.0,0.00024779,2]
[335805864,1724497855746,-150.0,0.00024802,2]
[335805866,1724497855756,-1005.1,0.0002484,2]
[335805868,1724497855765,-150.0,0.00024849,2]
[335805870,1724497855774,-150.0,0.0002485,2]
[335805872,1724497855784,-150.0,0.00024868,2]
[335805874,1724497855793,-3000.0,0.000249,2]
[335805876,1724497855803,-243.50407599,0.000249,2]
[335805878,1724497855814,-150.0,0.00024935,2]
[335805881,1724497855825,-150.0,0.00024937,2]
[335805883,1724497855836,-150.0,0.00024942,2]
[335805885,1724497855848,-1052.0,0.00024948,2]
[335805887,1724497855857,-222.94150994,0.0002499,2]
[335805889,1724497855867,-911.07,0.00024998,5]
[335805891,1724497855879,-150.0,0.00024999,10]
[335805893,1724497855888,-150.0,0.00024999,10]
[335805895,1724497855900,-150.0,0.00024999,10]
[335805897,1724497855909,-150.0,0.00024999,10]
[335805899,1724497855919,-150.0,0.00024999,10]
[335805901,1724497855930,-150.0,0.00024999,10]
[335805903,1724497855941,-150.0,0.00024999,10]
[335805905,1724497855950,-150.0,0.00024999,10]
[335805907,1724497855959,-150.0,0.00024999,10]
[335805909,1724497855968,-150.0,0.00024999,10]
[335805911,1724497855978,-150.0,0.00024999,10]
[335805913,1724497855997,-150.0,0.00024999,10]
[335805915,1724497856006,-150.0,0.00024999,10]
[335805917,1724497856016,-150.0,0.00024999,10]
[335805919,1724497856025,-150.0,0.00024999,10]
[335805921,1724497856034,-150.0,0.00024999,10]
[335805922,1724497856043,-150.0,0.00024999,10]
[335805924,1724497856052,-150.0,0.00024999,10]
[335805927,1724497856062,-150.0,0.00024999,10]
[335805928,1724497856071,-150.0,0.00024999,10]
[335805931,1724497856080,-150.0,0.00024999,10]
[335805933,1724497856090,-150.0,0.00024999,10]
[335805934,1724497856099,-150.0,0.00024999,10]
[335805936,1724497856108,-150.0,0.00024999,10]
[335805938,1724497856117,-150.0,0.00024999,10]
[335805940,1724497856126,-150.0,0.00024999,10]
[335805942,1724497856135,-150.0,0.00024999,10]
[335805944,1724497856144,-150.0,0.00024999,10]
[335805946,1724497856153,-150.0,0.00024999,10]
[335805948,1724497856162,-150.0,0.00024999,10]
[335805950,1724497856171,-150.0,0.00024999,10]
[335805952,1724497856180,-150.0,0.00024999,10]
[335805954,1724497856190,-150.0,0.00024999,10]
[335805956,1724497856199,-150.0,0.00024999,10]
[335805958,1724497856208,-150.0,0.00024999,10]
[335805960,1724497856217,-150.0,0.00024999,10]
[335805962,1724497856226,-150.0,0.00024999,10]
[335805964,1724497856239,-150.0,0.00024999,10]
[335805966,1724497856248,-150.0,0.00024999,10]
[335805968,1724497856257,-150.0,0.00024999,10]
[335805970,1724497856266,-150.0,0.00024999,10]
[335805972,1724497856275,-150.0,0.00024999,10]
[335805974,1724497856285,-150.0,0.00024999,10]
[335805976,1724497856294,-150.0,0.00024999,10]
[335805977,1724497856303,-150.0,0.00024999,10]
[335805979,1724497856311,-150.0,0.00024999,10]
[335805992,1724497856320,-150.0,0.00024999,10]
[335805994,1724497856431,-150.0,0.00024999,10]
[335805996,1724497856441,-216.91494412,0.00024999,10]
[335805998,1724497856451,-246.43340683,0.00024999,2]
[335806000,1724497856461,-4098.05781624,0.00024999,10]
[335806002,1724497856470,-4156.61058964,0.00024999,10]
[335806004,1724497856480,-456.73627088,0.00024999,20]
[335806006,1724497856490,-151.0,0.00024999,7]
[335806008,1724497856500,-1420.75,0.00024999,5]
[335806010,1724497856509,-1420.75,0.00024999,5]
[335806012,1724497856519,-1420.75,0.00024999,5]
[335806014,1724497856528,-1420.75,0.00024999,5]
[335806016,1724497856538,-1420.75,0.00024999,5]
[335806018,1724497856547,-1420.75,0.00024999,5]
[335806020,1724497856556,-1420.75,0.00024999,5]
[335806022,1724497856565,-1420.75,0.00024999,5]
[335806024,1724497856575,-1420.75,0.00024999,5]
[335806026,1724497856585,-1420.8719934,0.00024999,5]
[335806028,1724497856595,-500.0,0.00024999,5]
[335806030,1724497856604,-418.77494698,0.00024999,5]
[335806032,1724497856613,-500.0,0.00024999,5]
[335806034,1724497856623,-357.27,0.00024999,5]
[335806036,1724497856632,-608.21498527,0.00024999,5]
[335806038,1724497856642,-500.0,0.00024999,5]
[335806040,1724497856651,-500.0,0.00024999,5]
[335806042,1724497856661,-500.0,0.00024999,5]
[335806044,1724497856670,-214.2147709,0.00024999,5]
[335806046,1724497856679,-500.0,0.00024999,5]
[335806048,1724497856688,-223.98,0.00024999,5]
[335806050,1724497856698,-632.0,0.00024999,5]
[335806052,1724497856707,-632.0,0.00024999,5]
[335806054,1724497856716,-632.0,0.00024999,5]
[335806056,1724497856725,-632.0,0.00024999,5]
[335806058,1724497856734,-632.0,0.00024999,5]
[335806059,1724497856744,-632.0,0.00024999,5]
[335806062,1724497856753,-632.0,0.00024999,5]
[335806063,1724497856762,-632.0,0.00024999,5]
[335806065,1724497856771,-632.0,0.00024999,5]
[335806067,1724497856780,-632.22927314,0.00024999,5]
[335806069,1724497856789,-2340.07,0.00024999,5]
[335806071,1724497856799,-2340.07,0.00024999,5]
[335806073,1724497856808,-2340.07,0.00024999,5]
[335806075,1724497856817,-2340.07,0.00024999,5]
[335806077,1724497856827,-2340.07,0.00024999,5]
[335806079,1724497856836,-2340.07,0.00024999,5]
[335806081,1724497856851,-2340.07,0.00024999,5]
[335806083,1724497856861,-2340.07,0.00024999,5]
[335806085,1724497856870,-2340.07,0.00024999,5]
[335806087,1724497856879,-2340.21326451,0.00024999,5]
[335806089,1724497856890,-500.0,0.00024999,5]
[335806091,1724497856900,-550.86243158,0.00024999,5]
[335806093,1724497856909,-633.71,0.00024999,5]
[335806095,1724497856918,-633.71,0.00024999,5]
[335806097,1724497856928,-633.71,0.00024999,5]